[Event "Early-Titled-Tuesday-Blitz-July-09-2024"]
[Site "Chess.com"]
[Date "2024.07.09"]
[Round "2"]
[White "ChEsper99"]
[Black "TheoSlade"]
[Result "1-0"]
[WhiteElo "2265"]
[BlackElo "2467"]
[TimeControl "180+1"]
[EndTime "8:17:39 PDT"]
[Termination "ChEsper99 won by checkmate"]

1. d4 {[%clk 0:03:00.9]} 1... d5 {[%clk 0:02:59.5]} 2. c4 {[%clk 0:03:00.5]}
2... e6 {[%clk 0:02:59.8]} 3. Nf3 {[%clk 0:03:00.6]} 3... a6 {[%clk 0:03:00.2]}
4. cxd5 {[%clk 0:02:56.9]} 4... exd5 {[%clk 0:03:01.1]} 5. Nc3 {[%clk
0:02:57.1]} 5... c6 {[%clk 0:03:01.5]} 6. Bf4 {[%clk 0:02:56.6]} 6... Bd6 {[%clk
0:02:59.1]} 7. Bxd6 {[%clk 0:02:56]} 7... Qxd6 {[%clk 0:03:00]} 8. e3 {[%clk
0:02:52.3]} 8... Ne7 {[%clk 0:03:00]} 9. Bd3 {[%clk 0:02:52.7]} 9... O-O {[%clk
0:02:48.1]} 10. h3 {[%clk 0:02:46.9]} 10... Bf5 {[%clk 0:02:44.4]} 11. O-O
{[%clk 0:02:38.1]} 11... Nd7 {[%clk 0:02:36.1]} 12. Be2 {[%clk 0:02:35.4]} 12...
Nf6 {[%clk 0:02:31.2]} 13. Nh4 {[%clk 0:02:35.2]} 13... Rfe8 {[%clk 0:02:20.1]}
14. Nxf5 {[%clk 0:02:33.3]} 14... Nxf5 {[%clk 0:02:20.7]} 15. Bd3 {[%clk
0:02:31.9]} 15... Qd7 {[%clk 0:02:10.7]} 16. Qc2 {[%clk 0:02:27.1]} 16... Nd6
{[%clk 0:02:10.1]} 17. Rae1 {[%clk 0:02:18.9]} 17... Nfe4 {[%clk 0:01:58.6]} 18.
Nxe4 {[%clk 0:02:12.8]} 18... dxe4 {[%clk 0:01:55.4]} 19. Be2 {[%clk 0:02:07.8]}
19... f5 {[%clk 0:01:51]} 20. d5 {[%clk 0:01:41.9]} 20... cxd5 {[%clk
0:01:48.2]} 21. Rd1 {[%clk 0:01:41.8]} 21... Nf7 {[%clk 0:01:40.3]} 22. Qb3
{[%clk 0:01:39.6]} 22... Red8 {[%clk 0:01:39.3]} 23. Rd4 {[%clk 0:01:30.8]}
23... Rac8 {[%clk 0:01:35.4]} 24. Rfd1 {[%clk 0:01:26.8]} 24... Rc5 {[%clk
0:01:35.9]} 25. g3 {[%clk 0:01:20.4]} 25... Ng5 {[%clk 0:01:26.4]} 26. Rxd5
{[%clk 0:01:10]} 26... Rxd5 {[%clk 0:01:11.7]} 27. Rxd5 {[%clk 0:01:09.5]} 27...
Qxd5 {[%clk 0:00:52.2]} 28. Bc4 {[%clk 0:01:09.3]} 28... Nf3+ {[%clk 0:00:46.2]}
29. Kg2 {[%clk 0:00:58.9]} 29... Qxc4 {[%clk 0:00:47.1]} 30. Qxc4+ {[%clk
0:00:58.7]} 30... Kh8 {[%clk 0:00:46.6]} 31. g4 {[%clk 0:00:53.3]} 31... Nh4+
{[%clk 0:00:33.8]} 32. Kg3 {[%clk 0:00:51.2]} 32... g5 {[%clk 0:00:18.5]} 33.
Qf7 {[%clk 0:00:37]} 33... Rg8 {[%clk 0:00:07]} 34. gxf5 {[%clk 0:00:30.3]}
34... Nf3 {[%clk 0:00:07.5]} 35. Qf6+ {[%clk 0:00:22.4]} 35... Rg7 {[%clk
0:00:07.8]} 36. Qf8+ {[%clk 0:00:13.3]} 36... Rg8 {[%clk 0:00:07.8]} 37. Qe7
{[%clk 0:00:13.7]} 37... h5 {[%clk 0:00:07.2]} 38. f6 {[%clk 0:00:13.4]} 38...
h4+ {[%clk 0:00:06.2]} 39. Kg4 {[%clk 0:00:08.9]} 39... Nh2+ {[%clk 0:00:04.6]}
40. Kh5 {[%clk 0:00:09]} 40... Nf3 {[%clk 0:00:02.3]} 41. Kh6 {[%clk 0:00:08.8]}
41... g4 {[%clk 0:00:01.8]} 42. Qh7# {[%clk 0:00:09.1]} 1-0

[Event "Early-Titled-Tuesday-Blitz-July-09-2024"]
[Site "Chess.com"]
[Date "2024.07.09"]
[Round "2"]
[White "Klendi"]
[Black "rezamahdavi2008"]
[Result "1/2-1/2"]
[WhiteElo "2425"]
[BlackElo "2939"]
[TimeControl "180+1"]
[EndTime "8:17:40 PDT"]
[Termination "Game drawn - insufficient material"]

1. e4 {[%clk 0:03:00]} 1... e5 {[%clk 0:02:59]} 2. Nf3 {[%clk 0:02:59.9]} 2...
Nc6 {[%clk 0:02:59.8]} 3. Bb5 {[%clk 0:02:59.9]} 3... a6 {[%clk 0:03:00]} 4. Ba4
{[%clk 0:03:00.2]} 4... Nf6 {[%clk 0:03:00.7]} 5. O-O {[%clk 0:03:00]} 5... Nxe4
{[%clk 0:03:00.8]} 6. d4 {[%clk 0:02:58.6]} 6... b5 {[%clk 0:03:01.3]} 7. Bb3
{[%clk 0:02:58.9]} 7... d5 {[%clk 0:03:02]} 8. dxe5 {[%clk 0:02:58.5]} 8... Be6
{[%clk 0:03:02.7]} 9. c3 {[%clk 0:02:57.5]} 9... Bc5 {[%clk 0:03:02.7]} 10. Nbd2
{[%clk 0:02:57.8]} 10... O-O {[%clk 0:03:03.1]} 11. Bc2 {[%clk 0:02:58.4]} 11...
Nxf2 {[%clk 0:03:03.4]} 12. Rxf2 {[%clk 0:02:59.3]} 12... f6 {[%clk 0:03:04.1]}
13. Nf1 {[%clk 0:02:57.6]} 13... Bxf2+ {[%clk 0:03:02.8]} 14. Kxf2 {[%clk
0:02:58.5]} 14... fxe5 {[%clk 0:03:03.4]} 15. Kg1 {[%clk 0:02:59.1]} 15... Bg4
{[%clk 0:02:58.3]} 16. Ne3 {[%clk 0:02:58]} 16... Be6 {[%clk 0:02:58.5]} 17. Bd2
{[%clk 0:02:45.5]} 17... Qf6 {[%clk 0:02:45]} 18. Be1 {[%clk 0:02:42.8]} 18...
e4 {[%clk 0:02:07.6]} 19. Nxd5 {[%clk 0:01:17]} 19... Qf5 {[%clk 0:02:07.7]} 20.
Nxc7 {[%clk 0:00:34.7]} 20... Rad8 {[%clk 0:02:03.1]} 21. Qe2 {[%clk 0:00:35.3]}
21... exf3 {[%clk 0:01:52.7]} 22. Qxe6+ {[%clk 0:00:34.9]} 22... Qxe6 {[%clk
0:01:39.9]} 23. Nxe6 {[%clk 0:00:35.8]} 23... f2+ {[%clk 0:01:40.7]} 24. Bxf2
{[%clk 0:00:33.1]} 24... Rxf2 {[%clk 0:01:41.6]} 25. Nxd8 {[%clk 0:00:31.2]}
25... Rxc2 {[%clk 0:01:40.2]} 26. Nxc6 {[%clk 0:00:30.9]} 26... Rxb2 {[%clk
0:01:40.8]} 27. a4 {[%clk 0:00:29]} 27... Rc2 {[%clk 0:01:38]} 28. axb5 {[%clk
0:00:27.6]} 28... axb5 {[%clk 0:01:38.9]} 29. Nd4 {[%clk 0:00:27.5]} 29... Rxc3
{[%clk 0:01:38.4]} 30. Nxb5 {[%clk 0:00:27.7]} 30... Rc8 {[%clk 0:01:36]} 31.
Nd6 {[%clk 0:00:26]} 31... Rd8 {[%clk 0:01:36.2]} 32. Ne4 {[%clk 0:00:23.9]}
32... h6 {[%clk 0:01:36]} 33. Ra5 {[%clk 0:00:23]} 33... Kh7 {[%clk 0:01:36.3]}
34. g3 {[%clk 0:00:23.3]} 34... Rd4 {[%clk 0:01:36.3]} 35. Re5 {[%clk
0:00:22.5]} 35... Rb4 {[%clk 0:01:34.1]} 36. Nf2 {[%clk 0:00:21.2]} 36... Rb2
{[%clk 0:01:33.2]} 37. Kg2 {[%clk 0:00:21.8]} 37... Kg6 {[%clk 0:01:34.1]} 38.
h4 {[%clk 0:00:22]} 38... Kf6 {[%clk 0:01:34.6]} 39. Rc5 {[%clk 0:00:21.9]}
39... Ra2 {[%clk 0:01:35]} 40. h5 {[%clk 0:00:22]} 40... Rb2 {[%clk 0:01:35.5]}
41. Rc6+ {[%clk 0:00:22.1]} 41... Kg5 {[%clk 0:01:34.9]} 42. Rc5+ {[%clk
0:00:21.4]} 42... Kf6 {[%clk 0:01:34.9]} 43. Kf3 {[%clk 0:00:21.9]} 43... Rb3+
{[%clk 0:01:34.6]} 44. Kf4 {[%clk 0:00:22.2]} 44... Kf7 {[%clk 0:01:35.2]} 45.
Ne4 {[%clk 0:00:22.5]} 45... Kg8 {[%clk 0:01:35.7]} 46. Rc7 {[%clk 0:00:22.3]}
46... Kh7 {[%clk 0:01:36.2]} 47. g4 {[%clk 0:00:22]} 47... Rb4 {[%clk
0:01:36.3]} 48. Kf5 {[%clk 0:00:21.7]} 48... Rb5+ {[%clk 0:01:36.2]} 49. Ke6
{[%clk 0:00:21.9]} 49... Kg8 {[%clk 0:01:34]} 50. Nd6 {[%clk 0:00:20.6]} 50...
Rb6 {[%clk 0:01:31.3]} 51. Rc8+ {[%clk 0:00:20]} 51... Kh7 {[%clk 0:01:31.4]}
52. Kd5 {[%clk 0:00:19.8]} 52... Ra6 {[%clk 0:01:27.4]} 53. Nf7 {[%clk
0:00:18.6]} 53... g6 {[%clk 0:01:28]} 54. Rc7 {[%clk 0:00:14.5]} 54... gxh5
{[%clk 0:01:25.7]} 55. gxh5 {[%clk 0:00:15.4]} 55... Ra5+ {[%clk 0:01:26.4]} 56.
Rc5 {[%clk 0:00:14.8]} 56... Ra1 {[%clk 0:01:24.6]} 57. Ne5 {[%clk 0:00:14.8]}
57... Kg7 {[%clk 0:01:24.9]} 58. Ke6 {[%clk 0:00:15.1]} 58... Ra7 {[%clk
0:01:24.4]} 59. Rd5 {[%clk 0:00:15.3]} 59... Ra6+ {[%clk 0:01:21.7]} 60. Rd6
{[%clk 0:00:15.6]} 60... Rxd6+ {[%clk 0:01:15.8]} 61. Kxd6 {[%clk 0:00:15.7]}
61... Kf6 {[%clk 0:01:16.7]} 62. Nf3 {[%clk 0:00:14.6]} 62... Kf5 {[%clk
0:01:17]} 63. Ke7 {[%clk 0:00:09.2]} 63... Kg4 {[%clk 0:01:16.8]} 64. Kf6 {[%clk
0:00:09.5]} 64... Kxh5 {[%clk 0:01:17.7]} 65. Ne5 {[%clk 0:00:09.8]} 65... Kh4
{[%clk 0:01:18]} 66. Ng6+ {[%clk 0:00:10]} 66... Kg4 {[%clk 0:01:18.3]} 67. Ne5+
{[%clk 0:00:10.3]} 67... Kf4 {[%clk 0:01:18.6]} 68. Ng6+ {[%clk 0:00:10.6]}
68... Kg3 {[%clk 0:01:18.7]} 69. Ne5 {[%clk 0:00:10.5]} 69... h5 {[%clk
0:01:19.3]} 70. Ng6 {[%clk 0:00:10.8]} 70... Kg4 {[%clk 0:01:19.7]} 71. Kg7
{[%clk 0:00:11.1]} 71... Kg5 {[%clk 0:01:19.9]} 72. Kf7 {[%clk 0:00:11.5]} 72...
Kh6 {[%clk 0:01:20.1]} 73. Kf6 {[%clk 0:00:11.9]} 73... Kh7 {[%clk 0:01:20.7]}
74. Kg5 {[%clk 0:00:12.2]} 74... h4 {[%clk 0:01:21.4]} 75. Kxh4 {[%clk
0:00:12.6]} 1/2-1/2

[Event "Early-Titled-Tuesday-Blitz-July-09-2024"]
[Site "Chess.com"]
[Date "2024.07.09"]
[Round "2"]
[White "Slovineanu"]
[Black "Resourchess"]
[Result "1-0"]
[WhiteElo "2579"]
[BlackElo "2370"]
[TimeControl "180+1"]
[EndTime "8:17:42 PDT"]
[Termination "Slovineanu won on time"]

1. d4 {[%clk 0:02:54.4]} 1... d6 {[%clk 0:02:52.3]} 2. e4 {[%clk 0:02:53.8]}
2... g6 {[%clk 0:02:52.4]} 3. Nc3 {[%clk 0:02:52.4]} 3... Bg7 {[%clk 0:02:52.5]}
4. Be3 {[%clk 0:02:53]} 4... a6 {[%clk 0:02:51.5]} 5. Nf3 {[%clk 0:02:50.1]}
5... b5 {[%clk 0:02:50.2]} 6. h4 {[%clk 0:02:48.1]} 6... h6 {[%clk 0:02:49.3]}
7. Bd3 {[%clk 0:02:45.9]} 7... Bb7 {[%clk 0:02:48.2]} 8. e5 {[%clk 0:02:27.6]}
8... e6 {[%clk 0:02:43.3]} 9. a4 {[%clk 0:02:19.1]} 9... b4 {[%clk 0:02:37.1]}
10. Ne4 {[%clk 0:02:19.4]} 10... Bxe4 {[%clk 0:02:33.1]} 11. Bxe4 {[%clk
0:02:18.6]} 11... d5 {[%clk 0:02:33.3]} 12. Bd3 {[%clk 0:02:19]} 12... Ne7
{[%clk 0:02:32.8]} 13. h5 {[%clk 0:02:02.8]} 13... g5 {[%clk 0:02:29.6]} 14. O-O
{[%clk 0:02:01.1]} 14... Nd7 {[%clk 0:02:19.4]} 15. Nh2 {[%clk 0:01:48.4]} 15...
c5 {[%clk 0:02:16]} 16. c3 {[%clk 0:01:47.7]} 16... bxc3 {[%clk 0:02:13.2]} 17.
bxc3 {[%clk 0:01:47.7]} 17... Qa5 {[%clk 0:02:13.3]} 18. Rc1 {[%clk 0:01:19.8]}
18... f5 {[%clk 0:01:08.6]} 19. exf6 {[%clk 0:01:17.1]} 19... Nxf6 {[%clk
0:01:08.8]} 20. Re1 {[%clk 0:01:11.6]} 20... O-O {[%clk 0:01:01.3]} 21. Ng4
{[%clk 0:01:01.9]} 21... c4 {[%clk 0:00:58.5]} 22. Bb1 {[%clk 0:00:53.4]} 22...
Qb6 {[%clk 0:00:56.2]} 23. Ne5 {[%clk 0:00:45.8]} 23... Qd6 {[%clk 0:00:40.4]}
24. Qc2 {[%clk 0:00:41.1]} 24... Nf5 {[%clk 0:00:38.2]} 25. g4 {[%clk
0:00:38.9]} 25... Nxe3 {[%clk 0:00:33.9]} 26. Rxe3 {[%clk 0:00:38.7]} 26... Ra7
{[%clk 0:00:22.4]} 27. Rce1 {[%clk 0:00:38.4]} 27... Re7 {[%clk 0:00:19.2]} 28.
Ng6 {[%clk 0:00:37.1]} 28... Ne4 {[%clk 0:00:18.2]} 29. f3 {[%clk 0:00:31.1]}
29... Qg3+ {[%clk 0:00:16.5]} 30. Qg2 {[%clk 0:00:29.6]} 30... Ref7 {[%clk
0:00:11.7]} 31. Nxf8 {[%clk 0:00:27.5]} 31... Rxf8 {[%clk 0:00:11.5]} 32. fxe4
{[%clk 0:00:27.3]} 32... Qxg2+ {[%clk 0:00:11.8]} 33. Kxg2 {[%clk 0:00:27.3]}
33... Rf4 {[%clk 0:00:12.1]} 34. Kg3 {[%clk 0:00:24.7]} 34... Bf8 {[%clk
0:00:10.6]} 35. Rf3 {[%clk 0:00:21.1]} 35... Bd6 {[%clk 0:00:09.4]} 36. Rxf4
{[%clk 0:00:21]} 36... Bxf4+ {[%clk 0:00:09]} 37. Kf3 {[%clk 0:00:21.2]} 37...
Kf7 {[%clk 0:00:09.6]} 38. exd5 {[%clk 0:00:21.4]} 38... exd5 {[%clk 0:00:09.9]}
39. Bg6+ {[%clk 0:00:21.3]} 39... Kf6 {[%clk 0:00:09.8]} 40. Rb1 {[%clk
0:00:21.2]} 40... Bd2 {[%clk 0:00:08.9]} 41. Rb6+ {[%clk 0:00:20.5]} 41... Kg7
{[%clk 0:00:09.1]} 42. Rxa6 {[%clk 0:00:20.4]} 42... Bxc3 {[%clk 0:00:09.1]} 43.
Rd6 {[%clk 0:00:20.5]} 43... Bxd4 {[%clk 0:00:08.8]} 44. Rxd5 {[%clk 0:00:20.8]}
44... Bf6 {[%clk 0:00:09]} 45. Rd7+ {[%clk 0:00:20.6]} 45... Kh8 {[%clk
0:00:09.1]} 46. Ke4 {[%clk 0:00:21.1]} 46... c3 {[%clk 0:00:09.2]} 47. Kf5
{[%clk 0:00:18.6]} 1-0

[Event "Early-Titled-Tuesday-Blitz-July-09-2024"]
[Site "Chess.com"]
[Date "2024.07.09"]
[Round "2"]
[White "sirinbaba33"]
[Black "Rakhmanov_Aleksandr"]
[Result "0-1"]
[WhiteElo "2576"]
[BlackElo "2843"]
[TimeControl "180+1"]
[EndTime "8:17:43 PDT"]
[Termination "Rakhmanov_Aleksandr won by resignation"]

1. e4 {[%clk 0:03:00.9]} 1... c5 {[%clk 0:02:59.2]} 2. Nf3 {[%clk 0:02:59.7]}
2... Nf6 {[%clk 0:02:59.5]} 3. e5 {[%clk 0:02:57.9]} 3... Nd5 {[%clk 0:02:59.6]}
4. Nc3 {[%clk 0:02:58.5]} 4... Nxc3 {[%clk 0:02:59.9]} 5. dxc3 {[%clk
0:02:59.4]} 5... Nc6 {[%clk 0:03:00.6]} 6. Bf4 {[%clk 0:02:56.2]} 6... Qb6
{[%clk 0:03:00.7]} 7. b3 {[%clk 0:02:51.1]} 7... Qc7 {[%clk 0:03:00.7]} 8. Qd2
{[%clk 0:02:50.3]} 8... e6 {[%clk 0:03:00.9]} 9. Be2 {[%clk 0:02:45.1]} 9... h6
{[%clk 0:03:00.4]} 10. h4 {[%clk 0:02:40.8]} 10... b6 {[%clk 0:03:00.5]} 11.
O-O-O {[%clk 0:02:38.6]} 11... a6 {[%clk 0:02:59.5]} 12. Rh3 {[%clk 0:02:37.9]}
12... b5 {[%clk 0:02:58.4]} 13. c4 {[%clk 0:02:24.4]} 13... bxc4 {[%clk
0:02:52.4]} 14. Bxc4 {[%clk 0:02:24.2]} 14... Na5 {[%clk 0:02:53]} 15. Bd3
{[%clk 0:02:13.1]} 15... c4 {[%clk 0:02:46.3]} 16. Qc3 {[%clk 0:01:53.9]} 16...
Rb8 {[%clk 0:01:55.1]} 17. Bxc4 {[%clk 0:01:14]} 17... Ba3+ {[%clk 0:01:48.6]}
18. Kb1 {[%clk 0:01:11.8]} 18... Bb4 {[%clk 0:00:28.5]} 19. Qd3 {[%clk
0:00:52.3]} 19... Nxc4 {[%clk 0:00:23.9]} 20. Nd4 {[%clk 0:00:44.1]} 20... Na3+
{[%clk 0:00:11.6]} 21. Kb2 {[%clk 0:00:43.9]} 21... a5 {[%clk 0:00:11.3]} 22.
Rg3 {[%clk 0:00:34]} 22... g6 {[%clk 0:00:07]} 23. c3 {[%clk 0:00:20.3]} 23...
Bf8 {[%clk 0:00:03.1]} 24. Bc1 {[%clk 0:00:19.2]} 24... a4 {[%clk 0:00:02.8]}
25. Ka1 {[%clk 0:00:16.8]} 25... axb3 {[%clk 0:00:03.1]} 26. axb3 {[%clk
0:00:17.3]} 26... Qa5 {[%clk 0:00:03.5]} 27. Rd2 {[%clk 0:00:11.6]} 27... Nb5+
{[%clk 0:00:01.7]} 28. Kb1 {[%clk 0:00:10.6]} 28... Nxd4 {[%clk 0:00:01.4]} 29.
cxd4 {[%clk 0:00:11.1]} 29... Ra8 {[%clk 0:00:01.8]} 30. Bb2 {[%clk 0:00:10.7]}
30... Ba6 {[%clk 0:00:02.4]} 31. Qe4 {[%clk 0:00:10]} 31... Rb8 {[%clk
0:00:02.8]} 32. Rc2 {[%clk 0:00:09.1]} 32... Bb7 {[%clk 0:00:03.1]} 33. Qd3
{[%clk 0:00:09.1]} 33... Bd5 {[%clk 0:00:03.5]} 34. Rxg6 {[%clk 0:00:06.5]}
34... Qe1+ {[%clk 0:00:02.9]} 35. Rc1 {[%clk 0:00:01.7]} 35... Be4 {[%clk
0:00:03.1]} 36. Rxe1 {[%clk 0:00:01.5]} 36... Bxd3+ {[%clk 0:00:03.7]} 37. Kc1
{[%clk 0:00:02.4]} 37... Bxg6 {[%clk 0:00:04.1]} 38. h5 {[%clk 0:00:03.3]} 38...
Bf5 {[%clk 0:00:04.1]} 39. Re3 {[%clk 0:00:03.7]} 39... Bh7 {[%clk 0:00:04.8]}
40. g4 {[%clk 0:00:04.1]} 40... Be7 {[%clk 0:00:05.3]} 41. Rc3 {[%clk
0:00:04.7]} 41... Bg5+ {[%clk 0:00:05.7]} 42. Kd1 {[%clk 0:00:05.2]} 42... Be7
{[%clk 0:00:06.6]} 43. f4 {[%clk 0:00:05.7]} 43... Rg8 {[%clk 0:00:07]} 0-1

[Event "Early-Titled-Tuesday-Blitz-July-09-2024"]
[Site "Chess.com"]
[Date "2024.07.09"]
[Round "2"]
[White "kripri"]
[Black "arenal72"]
[Result "0-1"]
[WhiteElo "2322"]
[BlackElo "2711"]
[TimeControl "180+1"]
[EndTime "8:17:45 PDT"]
[Termination "arenal72 won by resignation"]

1. e4 {[%clk 0:03:00.9]} 1... Nc6 {[%clk 0:02:59.1]} 2. d4 {[%clk 0:03:00.2]}
2... d5 {[%clk 0:02:59.5]} 3. e5 {[%clk 0:03:00]} 3... Bf5 {[%clk 0:02:59.3]} 4.
Nf3 {[%clk 0:02:59.9]} 4... Qd7 {[%clk 0:02:59.6]} 5. Bd3 {[%clk 0:02:59.2]}
5... f6 {[%clk 0:02:59.8]} 6. O-O {[%clk 0:02:55.8]} 6... g5 {[%clk 0:02:59.7]}
7. exf6 {[%clk 0:02:36.4]} 7... exf6 {[%clk 0:02:59.4]} 8. Re1+ {[%clk
0:02:33.4]} 8... Be7 {[%clk 0:02:58.4]} 9. c3 {[%clk 0:02:23.8]} 9... O-O-O
{[%clk 0:02:57.7]} 10. Bxf5 {[%clk 0:02:14.7]} 10... Qxf5 {[%clk 0:02:57.6]} 11.
Nbd2 {[%clk 0:02:15]} 11... Bd6 {[%clk 0:02:53.5]} 12. Nf1 {[%clk 0:02:14.4]}
12... Nge7 {[%clk 0:02:48.3]} 13. Ng3 {[%clk 0:02:12.9]} 13... Qg6 {[%clk
0:02:43.3]} 14. Qe2 {[%clk 0:02:02.3]} 14... h5 {[%clk 0:02:39.9]} 15. h4 {[%clk
0:01:41.3]} 15... Bxg3 {[%clk 0:02:33.5]} 16. fxg3 {[%clk 0:01:40.5]} 16... gxh4
{[%clk 0:02:29]} 17. gxh4 {[%clk 0:01:39.8]} 17... Rhg8 {[%clk 0:02:25.5]} 18.
Bf4 {[%clk 0:01:35.7]} 18... Kb8 {[%clk 0:02:20.9]} 19. Qf2 {[%clk 0:01:22.4]}
19... Nf5 {[%clk 0:02:17.1]} 20. Re6 {[%clk 0:01:16]} 20... Qg4 {[%clk
0:02:16.1]} 21. Nh2 {[%clk 0:00:57.8]} 21... Qxh4 {[%clk 0:02:13.7]} 22. Bxc7+
{[%clk 0:00:55.1]} 22... Kxc7 {[%clk 0:02:10.2]} 23. Qxf5 {[%clk 0:00:55.3]}
23... Rg5 {[%clk 0:01:36.3]} 24. Nf3 {[%clk 0:00:29.4]} 24... Rxg2+ {[%clk
0:01:33.3]} 25. Kxg2 {[%clk 0:00:28.4]} 25... Rg8+ {[%clk 0:01:33.9]} 26. Kf1
{[%clk 0:00:23.5]} 26... Qh1+ {[%clk 0:01:33.8]} 27. Ke2 {[%clk 0:00:21.4]}
27... Rg2+ {[%clk 0:01:30.3]} 28. Ke3 {[%clk 0:00:18.2]} 28... Qxa1 {[%clk
0:01:30.8]} 29. Qxd5 {[%clk 0:00:08.9]} 29... Qxb2 {[%clk 0:01:01.6]} 30. Qd6+
{[%clk 0:00:08.1]} 30... Kb6 {[%clk 0:00:58.1]} 31. Qc5+ {[%clk 0:00:07.7]}
31... Ka6 {[%clk 0:00:57.2]} 32. Qc4+ {[%clk 0:00:08]} 32... Qb5 {[%clk
0:00:54.2]} 33. Qxb5+ {[%clk 0:00:06.2]} 33... Kxb5 {[%clk 0:00:55.1]} 34. Rxf6
{[%clk 0:00:06.7]} 34... Rxa2 {[%clk 0:00:53]} 35. Rf5+ {[%clk 0:00:07]} 35...
Kc4 {[%clk 0:00:53.2]} 36. Rc5+ {[%clk 0:00:06.8]} 36... Kb3 {[%clk 0:00:53.5]}
37. d5 {[%clk 0:00:07.1]} 37... Ra5 {[%clk 0:00:28.9]} 38. Rxa5 {[%clk
0:00:04.8]} 38... Nxa5 {[%clk 0:00:29.8]} 39. Nd4+ {[%clk 0:00:05.1]} 39... Kxc3
{[%clk 0:00:28.9]} 40. d6 {[%clk 0:00:05.6]} 40... b6 {[%clk 0:00:29.3]} 41. d7
{[%clk 0:00:05.5]} 41... Nb7 {[%clk 0:00:29.6]} 42. Nc6 {[%clk 0:00:05.8]} 42...
a5 {[%clk 0:00:29]} 43. d8=Q {[%clk 0:00:02.5]} 43... Nxd8 {[%clk 0:00:29.1]}
44. Nxd8 {[%clk 0:00:03.4]} 44... a4 {[%clk 0:00:29.6]} 45. Nc6 {[%clk
0:00:03.4]} 45... a3 {[%clk 0:00:29.6]} 46. Nd4 {[%clk 0:00:03.1]} 46... a2
{[%clk 0:00:28.8]} 47. Nb5+ {[%clk 0:00:02.6]} 47... Kb2 {[%clk 0:00:29.1]} 48.
Nd6 {[%clk 0:00:02.1]} 48... a1=Q {[%clk 0:00:29]} 49. Nc4+ {[%clk 0:00:03]}
49... Kc3 {[%clk 0:00:29.6]} 50. Nd2 {[%clk 0:00:03.4]} 50... Qe1+ {[%clk
0:00:29.5]} 51. Kf3 {[%clk 0:00:03.4]} 51... Qxd2 {[%clk 0:00:30.1]} 0-1

[Event "Early-Titled-Tuesday-Blitz-July-09-2024"]
[Site "Chess.com"]
[Date "2024.07.09"]
[Round "2"]
[White "imdarealist"]
[Black "Potosino1970"]
[Result "0-1"]
[WhiteElo "2247"]
[BlackElo "2696"]
[TimeControl "180+1"]
[EndTime "8:17:48 PDT"]
[Termination "Potosino1970 won on time"]

1. d4 {[%clk 0:02:59.6]} 1... Nf6 {[%clk 0:02:59.4]} 2. Bf4 {[%clk 0:02:59.6]}
2... d6 {[%clk 0:02:58.3]} 3. e3 {[%clk 0:02:59.7]} 3... g6 {[%clk 0:02:58.3]}
4. Nf3 {[%clk 0:02:59.1]} 4... Bg7 {[%clk 0:02:58.9]} 5. h3 {[%clk 0:02:59.5]}
5... O-O {[%clk 0:02:58.2]} 6. Bh2 {[%clk 0:03:00]} 6... Nbd7 {[%clk 0:02:58.5]}
7. a4 {[%clk 0:02:56.7]} 7... b6 {[%clk 0:02:56.8]} 8. c3 {[%clk 0:02:55.9]}
8... Bb7 {[%clk 0:02:56.5]} 9. Be2 {[%clk 0:02:52.8]} 9... c5 {[%clk 0:02:56.5]}
10. O-O {[%clk 0:02:51]} 10... a6 {[%clk 0:02:56.7]} 11. Nbd2 {[%clk 0:02:36.5]}
11... Ra7 {[%clk 0:02:56.7]} 12. Qb3 {[%clk 0:02:33.8]} 12... Qa8 {[%clk
0:02:56.2]} 13. Rfc1 {[%clk 0:02:27]} 13... Bd5 {[%clk 0:02:52.5]} 14. Qa3
{[%clk 0:02:26.7]} 14... Rc8 {[%clk 0:02:48.7]} 15. b4 {[%clk 0:02:25.8]} 15...
cxd4 {[%clk 0:02:40.2]} 16. cxd4 {[%clk 0:02:26]} 16... Rac7 {[%clk 0:02:40]}
17. Rxc7 {[%clk 0:02:13.6]} 17... Rxc7 {[%clk 0:02:40.9]} 18. Rc1 {[%clk
0:02:14.2]} 18... Rxc1+ {[%clk 0:02:35.8]} 19. Qxc1 {[%clk 0:02:15.1]} 19... Qb7
{[%clk 0:02:35.1]} 20. Bg3 {[%clk 0:01:53]} 20... h6 {[%clk 0:02:34.9]} 21. Qc3
{[%clk 0:01:49.9]} 21... Ne4 {[%clk 0:02:34.1]} 22. Nxe4 {[%clk 0:01:49.6]}
22... Bxe4 {[%clk 0:02:35]} 23. Qc4 {[%clk 0:01:39]} 23... Nb8 {[%clk
0:02:28.6]} 24. Ne1 {[%clk 0:01:34.8]} 24... Bd5 {[%clk 0:02:25.8]} 25. Qc3
{[%clk 0:01:32.5]} 25... b5 {[%clk 0:02:15.4]} 26. a5 {[%clk 0:01:16.3]} 26...
Qc6 {[%clk 0:02:14.3]} 27. Qd2 {[%clk 0:00:59.8]} 27... Kf8 {[%clk 0:02:12.2]}
28. Bd3 {[%clk 0:00:52.9]} 28... Nd7 {[%clk 0:02:05.2]} 29. f3 {[%clk
0:00:52.6]} 29... f5 {[%clk 0:01:56.5]} 30. Bf2 {[%clk 0:00:52.7]} 30... h5
{[%clk 0:01:54.4]} 31. Qc2 {[%clk 0:00:46.9]} 31... Qxc2 {[%clk 0:01:53.1]} 32.
Bxc2 {[%clk 0:00:47.8]} 32... Bc4 {[%clk 0:01:49.9]} 33. Nd3 {[%clk 0:00:44.2]}
33... Nb8 {[%clk 0:01:49]} 34. Nf4 {[%clk 0:00:43.3]} 34... Kf7 {[%clk
0:01:48.3]} 35. h4 {[%clk 0:00:36.9]} 35... Nc6 {[%clk 0:01:47.1]} 36. Be1
{[%clk 0:00:37.7]} 36... e5 {[%clk 0:01:45.5]} 37. dxe5 {[%clk 0:00:34.9]} 37...
dxe5 {[%clk 0:01:46.4]} 38. Nd3 {[%clk 0:00:35.5]} 38... Bf8 {[%clk 0:01:45]}
39. Nc5 {[%clk 0:00:14.3]} 39... Bxc5 {[%clk 0:01:43.8]} 40. bxc5 {[%clk
0:00:15.2]} 40... Ke6 {[%clk 0:01:42.8]} 41. g3 {[%clk 0:00:15.1]} 41... b4
{[%clk 0:01:37.1]} 42. e4 {[%clk 0:00:14]} 42... Nd4 {[%clk 0:01:31.3]} 43.
exf5+ {[%clk 0:00:12.5]} 43... gxf5 {[%clk 0:01:32.2]} 44. Bd1 {[%clk
0:00:11.1]} 44... b3 {[%clk 0:01:31.3]} 45. Bc3 {[%clk 0:00:11.3]} 45... Kd5
{[%clk 0:01:28.4]} 46. Kf2 {[%clk 0:00:08.1]} 46... Kxc5 {[%clk 0:01:28.3]} 47.
Ke3 {[%clk 0:00:08.6]} 47... Kd5 {[%clk 0:01:25.3]} 48. Kd2 {[%clk 0:00:04.3]}
48... Nb5 {[%clk 0:01:19.6]} 49. Ba1 {[%clk 0:00:03.2]} 49... Na7 {[%clk
0:01:13.5]} 50. Ke3 {[%clk 0:00:03.9]} 50... Nc6 {[%clk 0:01:13.5]} 51. Bc3
{[%clk 0:00:04.3]} 51... Ke6 {[%clk 0:00:54.7]} 52. f4 {[%clk 0:00:05.2]} 52...
e4 {[%clk 0:00:53.1]} 53. Bxh5 {[%clk 0:00:05.2]} 53... Ne7 {[%clk 0:00:53.4]}
54. Bd1 {[%clk 0:00:03.9]} 54... Nd5+ {[%clk 0:00:53.4]} 55. Kd4 {[%clk
0:00:02.1]} 55... Nxc3 {[%clk 0:00:51.5]} 56. Kxc3 {[%clk 0:00:02.3]} 56... e3
{[%clk 0:00:51.9]} 57. Kxc4 {[%clk 0:00:02.2]} 57... b2 {[%clk 0:00:52]} 0-1